bitfinex-derivatives/quotes_BTCF0:USTF0_20210406
["timestamp","ask_amount","ask_price","bid_price","bid_amount"]
[1617693142228,0.43875829,58779.0,58777.0,0.99152529]
[1617693142611,0.10725655,58781.0,58777.0,0.99152529]
[1617693142612,0.43879396,58780.0,58778.0,0.72151637]
[1617693142813,0.1281,58794.0,58777.0,0.27]
[1617693143013,0.1281,58794.0,58779.0,0.27]
[1617693143213,0.1281,58794.0,58793.0,0.10725655]
[1617693143514,0.1281,58794.0,58793.0,0.25715655]
[1617693143715,1.06580946,58794.0,58793.0,0.52715655]
[1617693143914,3.89730946,58794.0,58793.0,0.52715655]
[1617693144516,4.02576645,58794.0,58793.0,0.52715655]
[1617693144917,4.58427997,58794.0,58793.0,0.52715655]
[1617693145215,4.69153652,58794.0,58793.0,0.52715655]
[1617693145415,4.133023,58794.0,58793.0,0.52715655]
[1617693146316,1.301523,58794.0,58793.0,0.52715655]
[1617693146718,1.301523,58794.0,58793.0,0.4199]
[1617693147120,1.17306601,58794.0,58793.0,0.4199]
[1617693156333,1.17306601,58794.0,58793.0,0.27]
[1617693156735,1.17306601,58794.0,58791.0,0.27]
[1617693157334,0.93670505,58792.0,58791.0,0.27]
[1617693158437,0.23535655,58794.0,58791.0,0.27]
[1617693161240,3.5724,58792.0,58791.0,0.27]
[1617693161644,3.70072506,58792.0,58791.0,0.27]
[1617693162641,4.19853522,58792.0,58791.0,0.27]
[1617693165144,3.70072506,58792.0,58791.0,0.27]
[1617693166343,0.49786152,58793.0,58791.0,0.27]
[1617693166344,0.10725655,58794.0,58791.0,0.27]
[1617693166545,0.55753544,58801.0,58794.0,2.85021942]
[1617693166746,0.55753544,58801.0,58800.0,2.6388]
[1617693167147,0.5575915,58803.0,58800.0,2.6388]
[1617693167346,1.10725655,58801.0,58800.0,2.9088]
[1617693168952,2.10284393,58801.0,58800.0,2.9088]
[1617693176257,2.10284393,58801.0,58800.0,0.27]
[1617693176659,5.20304393,58801.0,58795.0,0.27]
[1617693177059,5.20304393,58801.0,58800.0,0.27]
[1617693177359,1.43800339,58796.0,58795.0,0.27]
[1617693177559,1.43800339,58796.0,58794.0,2.85021942]
[1617693177760,0.43800339,58796.0,58794.0,2.85021942]
[1617693177960,0.43800339,58796.0,58795.0,0.27]
[1617693178160,0.9884888,58800.0,58795.0,0.27]
[1617693178560,0.43795807,58796.0,58795.0,0.27]
[1617693179662,1.43795807,58796.0,58795.0,0.27]
[1617693180663,1.99655204,58796.0,58795.0,0.27]
[1617693181667,1.0,58796.0,58795.0,0.27]
[1617693182165,2.49548622,58796.0,58795.0,0.27]
[1617693189079,1.49849541,58796.0,58795.0,0.27]
[1617693194681,0.55827423,58798.0,58796.0,1.35172401]
[1617693194983,1.0,58797.0,58796.0,1.35172401]
[1617693195584,1.0,58797.0,58796.0,1.62172401]
[1617693201290,1.55870914,58797.0,58796.0,1.62172401]
[1617693203090,0.55870914,58797.0,58796.0,1.62172401]
[1617693203790,0.55844944,58798.0,58796.0,1.62172401]
[1617693204090,0.55846586,58797.0,58796.0,1.62172401]
[1617693205093,0.55846586,58797.0,58796.0,5.25962401]
[1617693206294,0.55849832,58798.0,58796.0,5.25962401]
[1617693206495,1.0,58797.0,58796.0,5.25962401]
[1617693206895,0.55849832,58798.0,58796.0,5.25962401]
[1617693208200,0.55842573,58799.0,58796.0,5.25962401]
[1617693210099,0.55842573,58799.0,58796.0,5.56076681]
[1617693210499,0.49849054,58797.0,58796.0,5.56076681]
[1617693216217,0.49849054,58797.0,58796.0,5.92201806]
[1617693216616,0.49920258,58798.0,58796.0,5.92201806]
[1617693216816,0.49920258,58798.0,58796.0,2.28411806]
[1617693217218,2.7508,58797.0,58796.0,1.62172401]
[1617693217718,2.7508,58797.0,58796.0,2.28399749]
[1617693217719,2.84116298,58797.0,58796.0,2.28399749]
[1617693218222,3.3401241,58797.0,58796.0,2.28399749]
[1617693219120,2.84116298,58797.0,58796.0,2.28399749]
[1617693219421,3.3400055,58797.0,58796.0,2.28399749]
[1617693221222,3.3400055,58797.0,58796.0,1.92275741]
[1617693221624,3.3400055,58797.0,58796.0,2.28374618]
[1617693222426,2.84116298,58797.0,58796.0,2.28374618]
[1617693222825,3.33934728,58797.0,58796.0,2.28374618]
[1617693223333,3.33934728,58797.0,58796.0,1.92275741]
[1617693225228,2.7508,58797.0,58796.0,1.62172401]
[1617693225629,2.7508,58797.0,58796.0,1.92250813]
[1617693225630,3.24892135,58797.0,58796.0,1.92250813]
[1617693227429,0.49812135,58797.0,58796.0,1.92250813]
[1617693227630,0.49812135,58797.0,58796.0,5.33580813]
[1617693227831,0.60546132,58798.0,58796.0,5.69674654]
[1617693228330,0.10725655,58798.0,58797.0,0.72195754]
[1617693228731,0.10725655,58798.0,58797.0,0.99195754]
[1617693232237,0.10725655,58798.0,58797.0,0.27]
[1617693232637,0.10725655,58798.0,58797.0,0.931716]
[1617693233541,0.10725655,58798.0,58797.0,0.57078]
[1617693235342,0.10725655,58798.0,58797.0,0.93143855]
[1617693239141,0.49782344,58801.0,58800.0,2.6189]
[1617693239344,0.49820314,58806.0,58800.0,2.6189]
[1617693239550,0.49820314,58806.0,58800.0,3.8889]
[1617693239742,0.99630667,58835.0,58800.0,3.8889]
[1617693239743,0.4983742,58808.0,58805.0,0.40778719]
[1617693239942,0.4983742,58808.0,58805.0,1.52660719]
[1617693240142,0.4983742,58808.0,58807.0,1.0]
[1617693240343,0.49851415,58810.0,58807.0,1.30051853]
[1617693240542,0.49851415,58810.0,58807.0,1.57051853]
[1617693240743,0.49851415,58810.0,58807.0,0.57051853]
[1617693240945,0.49864177,58812.0,58809.0,0.30050847]
[1617693241145,0.49864177,58812.0,58809.0,1.30050847]
[1617693241344,0.49864177,58812.0,58811.0,1.0]
[1617693241744,0.49864177,58812.0,58811.0,1.67776279]
[1617693241945,0.49864177,58812.0,58811.0,0.67776279]
[1617693242148,0.10725655,58813.0,58811.0,0.67776279]
[1617693242648,0.10725655,58813.0,58812.0,0.72126739]
[1617693243048,0.10725655,58813.0,58812.0,0.63069915]
[1617693247864,0.10725655,58813.0,58812.0,0.99127523]
[1617693249255,0.10725655,58813.0,58812.0,0.63069915]
[1617693250264,0.10725655,58813.0,58812.0,0.27]
[1617693270176,0.10725655,58813.0,58812.0,0.56955076]
[1617693270678,0.10725655,58813.0,58812.0,0.27]
[1617693280386,0.10725655,58813.0,58812.0,0.56953141]
[1617693282690,0.10725655,58813.0,58812.0,0.929272]
[1617693282990,0.10725655,58813.0,58812.0,1.929272]
[1617693283591,0.245,58826.0,58812.0,1.929272]
[1617693283791,0.245,58826.0,58812.0,5.471772]
[1617693283991,0.74328945,58826.0,58825.0,0.10725655]
[1617693284391,0.74328945,58826.0,58825.0,0.37725655]
[1617693286094,0.850546,58826.0,58825.0,0.27]
[1617693286494,0.850546,58826.0,58819.0,0.10725655]
[1617693286994,0.850546,58826.0,58820.0,0.27]
[1617693288297,0.35225655,58826.0,58820.0,0.27]
[1617693288698,0.85049859,58826.0,58820.0,0.27]
[1617693289199,0.35225655,58826.0,58820.0,0.27]
[1617693289799,0.85050078,58826.0,58820.0,0.27]
[1617693290099,0.71050078,58826.0,58820.0,0.27]
[1617693290299,0.85050078,58826.0,58820.0,0.27]
[1617693290599,0.28225655,58826.0,58820.0,0.27]
[1617693290901,0.78050233,58826.0,58820.0,0.27]
[1617693291103,0.85050233,58826.0,58820.0,0.27]
[1617693291508,0.81550233,58826.0,58820.0,0.27]
[1617693292001,2.4957,58821.0,58820.0,0.27]
[1617693292202,2.59559,58821.0,58820.0,0.27]
[1617693292603,2.68591278,58821.0,58820.0,0.27]
[1617693293604,2.68591278,58821.0,58820.0,0.57061604]
[1617693293605,3.18513337,58821.0,58820.0,0.57061604]
[1617693294301,0.68943337,58821.0,58820.0,0.57061604]
[1617693294502,0.58954337,58821.0,58820.0,0.57061604]
[1617693294802,0.49922059,58821.0,58820.0,3.48501604]
[1617693296003,0.35225655,58826.0,58825.0,0.85250342]
[1617693296404,0.35225655,58826.0,58825.0,1.12250342]
[1617693297227,0.35225655,58826.0,58825.0,4.77570342]
[1617693308418,0.35225655,58826.0,58825.0,5.0761453]
[1617693309220,0.35225655,58826.0,58825.0,4.77570342]
[1617693309830,0.35225655,58826.0,58825.0,5.0760912]
[1617693310621,0.35225655,58826.0,58825.0,5.43658931]
[1617693311022,0.35225655,58826.0,58825.0,5.0760912]
[1617693314028,0.35225655,58826.0,58825.0,1.4228912]
[1617693314230,3.55525655,58826.0,58825.0,1.4228912]
[1617693314630,3.55525655,58826.0,58825.0,1.12250342]
[1617693314928,3.6957178,58826.0,58825.0,1.12250342]
[1617693315831,4.6957178,58826.0,58825.0,1.42324168]
[1617693316131,4.6957178,58826.0,58825.0,1.12250342]
[1617693317631,5.25719683,58826.0,58825.0,1.12250342]
[1617693317930,4.55525655,58826.0,58825.0,1.12250342]
[1617693318331,4.69572073,58826.0,58825.0,1.12250342]
[1617693318731,5.2572037,58826.0,58825.0,1.12250342]
[1617693319332,4.69572073,58826.0,58825.0,1.12250342]
[1617693319732,5.25719979,58826.0,58825.0,1.12250342]
[1617693320133,5.25719979,58826.0,58825.0,0.85250342]
[1617693322135,4.69572073,58826.0,58825.0,0.85250342]
[1617693322834,3.69572073,58826.0,58825.0,0.85250342]
[1617693323043,4.69572073,58826.0,58825.0,0.85250342]
[1617693323234,3.69572073,58826.0,58825.0,0.85250342]
[1617693323836,3.75525655,58826.0,58825.0,0.85250342]
[1617693325341,4.31688245,58826.0,58825.0,0.85250342]
[1617693325540,5.31688245,58826.0,58825.0,0.85250342]
[1617693325741,6.81688245,58826.0,58825.0,0.85250342]
[1617693326048,3.61388245,58826.0,58825.0,0.85250342]
[1617693326242,3.75435077,58826.0,58825.0,0.85250342]
[1617693326944,3.61388245,58826.0,58825.0,0.85250342]
[1617693327643,4.31474223,58826.0,58825.0,0.85250342]
[1617693327843,4.31474223,58826.0,58825.0,0.83170342]
[1617693328044,4.31474223,58826.0,58825.0,0.82730342]
[1617693328547,4.31474223,58826.0,58825.0,0.82629999]
[1617693330147,4.31474223,58826.0,58825.0,0.82229999]
[1617693333352,4.31144223,58826.0,58825.0,0.82229999]
[1617693335354,4.17144223,58826.0,58825.0,0.82229999]
[1617693335756,4.17144223,58826.0,58825.0,0.52739999]
[1617693335956,4.10144223,58826.0,58825.0,0.52739999]
[1617693336356,4.10144223,58826.0,58825.0,0.43689999]
[1617693336558,4.10144223,58826.0,58825.0,0.08849999]
[1617693336758,4.06644223,58826.0,58825.0,0.06519999]
[1617693336959,4.94793019,58826.0,58825.0,0.06519999]
[1617693337462,4.06644223,58826.0,58825.0,0.06519999]
[1617693337759,3.06644223,58826.0,58825.0,0.06519999]
[1617693337959,9.06644223,58826.0,58825.0,0.03019999]
[1617693338159,9.06644223,58826.0,58825.0,0.00509999]
[1617693338360,10.37797919,58826.0,58825.0,9.999e-05]
[1617693338860,10.37797919,58826.0,58791.0,0.29993604]
[1617693339059,10.37797919,58826.0,58789.0,0.29992998]
[1617693339060,0.1332,58817.0,58789.0,0.29992998]
[1617693339359,2.66416,58804.0,58789.0,3.25052998]
[1617693339561,2.66416,58804.0,58791.0,0.29992728]
[1617693339562,1.0,58795.0,58791.0,0.29992728]
[1617693339762,1.0,58797.0,58791.0,0.29992728]
[1617693339959,1.0,58797.0,58792.0,0.56992516]
[1617693340359,0.10725655,58793.0,58791.0,0.29992389]
[1617693341060,0.10725655,58793.0,58792.0,0.27]
[1617693341663,0.10725655,58793.0,58792.0,0.56992202]
[1617693342163,0.10725655,58793.0,58792.0,0.29992202]
[1617693342363,0.10725655,58793.0,58792.0,0.56992202]
[1617693342865,3.77425655,58793.0,58792.0,0.56992202]
[1617693343869,3.77425655,58793.0,58792.0,0.27]
[1617693344266,3.77425655,58793.0,58791.0,0.29988254]
[1617693344481,4.93111655,58793.0,58791.0,0.29988254]
[1617693344671,4.93111655,58793.0,58784.0,0.43982842]
[1617693344672,4.93111655,58793.0,58787.0,0.29989926]
[1617693345166,4.93111655,58793.0,58786.0,0.29990303]
[1617693345571,4.93111655,58793.0,58787.0,0.29990467]
[1617693345866,4.93111655,58793.0,58788.0,0.29990307]
[1617693346466,1.0,58791.0,58788.0,0.29990307]
[1617693347166,1.0,58791.0,58789.0,0.29990234]
[1617693347566,1.0,58791.0,58783.0,0.06022193]
[1617693347567,1.0,58791.0,58790.0,0.29989378]
[1617693348070,1.0,58791.0,58789.0,0.29989242]
[1617693348468,1.0,58791.0,58785.0,0.29931918]
[1617693348768,4.93111655,58793.0,58785.0,0.29931918]
[1617693349070,3.93111655,58793.0,58785.0,0.29931918]
[1617693349269,3.93111655,58793.0,58786.0,0.27]
[1617693349769,4.93111655,58793.0,58786.0,0.27]
[1617693350069,3.93111655,58793.0,58786.0,0.27]
[1617693350269,0.10725655,58785.0,58784.0,0.56931959]
[1617693350471,0.10725655,58785.0,58784.0,0.29931959]
[1617693350883,0.10725655,58785.0,58784.0,0.56931959]
[1617693353075,0.10725655,58785.0,58784.0,0.92849698]
[1617693354073,0.10725655,58785.0,58784.0,0.56931959]
[1617693354675,0.10725655,58785.0,58784.0,0.27]
[1617693355076,0.10725655,58785.0,58783.0,0.56923553]
[1617693355475,0.10725655,58785.0,58784.0,0.27]
[1617693356677,0.10725655,58785.0,58784.0,0.56923738]
[1617693357077,0.10725655,58785.0,58784.0,0.29923738]
[1617693357481,0.10725655,58785.0,58784.0,0.56923738]
[1617693357683,0.10725655,58785.0,58784.0,0.27]
[1617693357883,0.15855655,58785.0,58784.0,0.27]
[1617693358088,0.15855655,58785.0,58783.0,0.29923728]
[1617693358090,0.15855655,58785.0,58783.0,0.27]
[1617693358488,0.15855655,58785.0,58784.0,0.27]
[1617693358784,0.10725655,58785.0,58783.0,0.27]
[1617693359084,0.10725655,58785.0,58784.0,0.27]
[1617693359286,0.10725655,58785.0,58783.0,0.56923682]
[1617693359584,0.10725655,58785.0,58784.0,0.27]
[1617693360084,0.10725655,58785.0,58783.0,0.29923682]
[1617693360284,0.10725655,58785.0,58784.0,0.27]
[1617693361286,0.10725655,58785.0,58783.0,0.27]
[1617693361486,0.10725655,58785.0,58784.0,0.27]
[1617693361887,0.10725655,58785.0,58783.0,0.27]
[1617693362088,2.4819,58784.0,58783.0,0.27]
[1617693362287,2.4819,58784.0,58782.0,0.27]
[1617693362487,2.4819,58784.0,58781.0,0.29913623]
[1617693362689,2.4819,58784.0,58782.0,0.27]
[1617693363989,2.4819,58784.0,58782.0,0.56923803]
[1617693364394,2.4819,58784.0,58782.0,0.29923803]
[1617693364688,2.4819,58784.0,58783.0,0.27]
[1617693365190,2.4819,58784.0,58783.0,0.56923906]
[1617693365699,2.4819,58784.0,58783.0,0.29923906]
[1617693365912,2.4819,58784.0,58783.0,0.56923906]
[1617693366400,2.4819,58784.0,58783.0,0.27]
[1617693366791,2.62075,58784.0,58781.0,0.29924053]
[1617693367192,2.62075,58784.0,58783.0,0.27]
[1617693367392,2.62075,58784.0,58782.0,0.56924091]
[1617693367792,2.62075,58784.0,58783.0,0.27]
[1617693368297,2.62075,58784.0,58780.0,0.56924085]
[1617693368592,2.62075,58784.0,58781.0,0.27]
[1617693368794,2.62075,58784.0,58779.0,0.29924295]
[1617693369093,2.62075,58784.0,58780.0,0.56924274]
[1617693369510,2.62075,58784.0,58780.0,0.29924274]
[1617693369701,2.62075,58784.0,58781.0,0.27]
[1617693370092,0.13885,58784.0,58779.0,0.27]
[1617693370391,0.13885,58784.0,58782.0,0.27]
[1617693370792,2.6921,58783.0,58779.0,0.27]
[1617693371093,3.13019774,58783.0,58779.0,0.27]
[1617693371494,1.0,58780.0,58772.0,0.29928941]
[1617693371693,1.43788286,58780.0,58768.0,0.29929692]
[1617693372096,0.43784092,58777.0,58766.0,0.29930176]
[1617693372294,1.93784092,58777.0,58772.0,0.27]
[1617693372496,0.10725655,58773.0,58772.0,0.27]
[1617693372896,0.30725655,58773.0,58772.0,0.27]
[1617693373097,0.74512638,58773.0,58772.0,0.27]
[1617693374402,1.74512638,58773.0,58772.0,0.27]
[1617693374611,1.74512638,58773.0,58758.0,0.4725]
[1617693375007,1.93756261,58772.0,58756.0,0.29935764]
[1617693375201,3.05919261,58772.0,58756.0,0.29935764]
[1617693375600,3.72252155,58772.0,58756.0,0.29935764]
[1617693376000,0.4379005,58762.0,58757.0,0.27]
[1617693376401,2.81385655,58758.0,58755.0,0.29966607]
[1617693376602,2.96647655,58758.0,58755.0,0.29966607]
[1617693376802,2.96647655,58758.0,58756.0,0.27]
[1617693377001,2.96647655,58758.0,58755.0,0.29966607]
[1617693377403,2.96647655,58758.0,58756.0,0.27]
[1617693377603,2.96647655,58758.0,58756.0,0.56965003]
[1617693378013,2.96647655,58758.0,58756.0,0.29965003]
[1617693378302,2.96647655,58758.0,58757.0,0.27]
[1617693379105,2.96647655,58758.0,58754.0,0.27]
[1617693379404,0.25987655,58758.0,58757.0,0.27]
[1617693379804,0.25987655,58758.0,58757.0,2.7587]
[1617693380403,0.25987655,58758.0,58757.0,3.0287]
[1617693382108,0.10725655,58758.0,58757.0,3.0287]
[1617693389714,0.21542655,58758.0,58757.0,3.0287]
[1617693390139,0.12163,58772.0,58757.0,3.0287]
[1617693390315,0.55618283,58786.0,58757.0,0.27]
[1617693390515,1.0,58784.0,58776.0,2.5745]
[1617693390765,3.1469,58787.0,58776.0,2.5745]
[1617693391519,0.14055192,58792.0,58776.0,0.1022]
[1617693391718,0.14055192,58792.0,58778.0,1.0]
[1617693391940,0.1281,58794.0,58778.0,2.5]
[1617693392175,0.1281,58794.0,58784.0,1.0]
[1617693392521,0.10725655,58785.0,58784.0,1.0]
[1617693392720,0.10725655,58785.0,58783.0,1.0]
[1617693392919,0.10725655,58785.0,58784.0,3.9007]
[1617693393219,0.10725655,58785.0,58784.0,3.6307]
[1617693393620,0.10725655,58785.0,58784.0,3.9007]
[1617693394521,0.10725655,58785.0,58784.0,0.27]
[1617693394922,0.10725655,58785.0,58783.0,0.27]
[1617693395324,0.10725655,58785.0,58784.0,0.27]
[1617693395523,0.10725655,58785.0,58782.0,1.60725655]
[1617693395723,0.10725655,58785.0,58783.0,0.27]
[1617693404637,0.10725655,58785.0,58784.0,2.5]
[1617693404839,0.10725655,58785.0,58784.0,5.6491]
[1617693405043,0.1281,58794.0,58784.0,5.9191]
[1617693405240,0.1281,58794.0,58785.0,0.2]
[1617693405440,0.1281,58794.0,58793.0,1.0]
[1617693405654,0.1281,58794.0,58793.0,2.79849]
[1617693406041,0.87761267,58822.0,58793.0,2.79849]
[1617693406042,0.49868155,58803.0,58793.0,3.06849]
[1617693406442,0.49863346,58809.0,58798.0,1.0]
[1617693406641,0.49863346,58809.0,58808.0,0.10725655]
[1617693406842,0.49863346,58809.0,58808.0,0.20499655]
[1617693407142,0.1281,58815.0,58808.0,0.20499655]
[1617693407143,0.49863039,58813.0,58808.0,0.20499655]
[1617693408644,0.10725655,58809.0,58808.0,0.20499655]
[1617693410448,0.49854658,58814.0,58808.0,0.20499655]
[1617693410650,0.49854658,58814.0,58808.0,1.47499655]
[1617693410850,0.73388223,58815.0,58808.0,1.47499655]
[1617693411452,0.23535655,58815.0,58808.0,0.47499655]
[1617693412258,0.23535655,58815.0,58812.0,3.409]
[1617693412661,0.23535655,58815.0,58814.0,0.10725655]
[1617693415257,0.23535655,58815.0,58814.0,0.37725655]
[1617693436097,0.10725655,58815.0,58814.0,0.37725655]
[1617693440195,0.10725655,58815.0,58806.0,1.0]
[1617693440394,0.10725655,58815.0,58796.0,0.29577696]
[1617693440395,3.32465655,58815.0,58796.0,0.29577696]
[1617693440594,1.10725655,58815.0,58796.0,0.29577696]
[1617693440795,3.33926,58804.0,58799.0,0.10725655]
[1617693441294,3.33926,58804.0,58800.0,0.27]
[1617693442796,0.10725655,58801.0,58800.0,0.27]
[1617693446400,0.24826655,58801.0,58800.0,0.27]
[1617693449003,0.10725655,58801.0,58800.0,0.27]
[1617693450504,0.10725655,58801.0,58800.0,10.27]
[1617693461314,0.50039462,58803.0,58801.0,9.89274345]
[1617693461714,0.50039462,58803.0,58802.0,0.27]
[1617693462915,0.60765117,58803.0,58802.0,0.27]
[1617693463116,0.60765117,58803.0,58802.0,3.9226]
[1617693463716,0.10725655,58803.0,58802.0,3.9226]
[1617693464117,0.60764706,58803.0,58802.0,3.9226]
[1617693465022,0.10725655,58803.0,58802.0,3.9226]
[1617693465622,0.10725655,58803.0,58802.0,0.27]
[1617693465825,3.64275655,58803.0,58802.0,0.27]
[1617693466923,4.14315258,58803.0,58802.0,0.27]
[1617693467929,4.27176258,58803.0,58802.0,0.27]
[1617693470929,0.56015317,58808.0,58803.0,5.62098087]
[1617693471230,0.56015413,58809.0,58803.0,5.62098087]
[1617693471932,0.56015413,58809.0,58807.0,3.3874]
[1617693472132,0.1281,58812.0,58807.0,3.3874]
[1617693472133,0.55991995,58810.0,58807.0,3.3874]
[1617693473130,0.10725655,58808.0,58807.0,3.3874]
[1617693473532,0.10725655,58808.0,58803.0,5.62098087]
[1617693474032,3.4015,58804.0,58803.0,5.62098087]
[1617693474835,3.49183171,58804.0,58803.0,5.62098087]
[1617693477036,3.49183171,58804.0,58803.0,5.72823742]
[1617693477937,0.09033171,58804.0,58803.0,5.72823742]
[1617693478738,0.09033101,58807.0,58803.0,5.72823742]
[1617693480745,0.09033101,58807.0,58804.0,5.62098087]
[1617693485950,3.28985655,58808.0,58804.0,5.62098087]
[1617693490059,3.1826,58808.0,58804.0,5.62098087]
[1617693490259,0.68816931,58812.0,58808.0,2.43838087]
[1617693490459,0.68816931,58812.0,58811.0,2.6894]
[1617693490704,0.68816931,58812.0,58811.0,4.1894]
[1617693490960,0.6280779,58812.0,58811.0,5.4594]
[1617693491160,0.6280779,58812.0,58811.0,5.76665655]
[1617693491393,0.1281,58812.0,58811.0,5.76665655]
[1617693491963,0.49996805,58813.0,58811.0,5.76665655]
[1617693492193,0.49991517,58818.0,58811.0,5.76665655]
[1617693492365,0.49991517,58818.0,58812.0,1.0]
[1617693492564,0.49991517,58818.0,58817.0,1.0]
[1617693492766,0.49990109,58820.0,58817.0,2.61459]
[1617693493065,0.49990116,58821.0,58819.0,0.10725655]
[1617693493267,0.49990116,58821.0,58820.0,1.5]
[1617693493466,0.49990116,58821.0,58820.0,1.77]
[1617693493766,0.49990116,58821.0,58820.0,2.77]
[1617693496371,0.50090164,58823.0,58820.0,3.4247361]
[1617693496769,0.50090164,58823.0,58820.0,2.4247361]
[1617693496970,0.56099782,58832.0,58822.0,0.29758359]
[1617693496971,0.50090029,58824.0,58822.0,0.29758359]
[1617693497170,0.50090029,58824.0,58823.0,1.5]
[1617693497469,0.50090029,58824.0,58823.0,1.77]
[1617693497671,0.50090029,58824.0,58823.0,3.06756907]
[1617693498071,0.49903242,58832.0,58823.0,2.77]
[1617693498571,0.49903242,58832.0,58823.0,1.77]
[1617693499270,0.49903242,58832.0,58831.0,1.76687655]
[1617693499671,0.49903242,58832.0,58831.0,2.03687655]
[1617693499874,0.49902399,58833.0,58831.0,2.03687655]
[1617693500671,0.49902399,58833.0,58832.0,2.5]
[1617693501177,0.49902399,58833.0,58832.0,2.77]
[1617693501375,0.49902399,58833.0,58832.0,1.77]
[1617693501674,0.1281,58836.0,58832.0,1.77]
[1617693501675,0.49901868,58834.0,58832.0,1.77]
[1617693501872,0.49901868,58834.0,58832.0,2.77]
[1617693502072,0.49901868,58834.0,58832.0,1.77]
[1617693502773,0.49901842,58833.0,58832.0,1.77]
[1617693503071,0.1281,58836.0,58832.0,1.77]
[1617693503072,0.49901958,58834.0,58832.0,1.77]
[1617693505474,0.49901958,58834.0,58832.0,2.77]
[1617693505676,0.49901958,58834.0,58833.0,1.0]
[1617693505875,0.49901958,58834.0,58833.0,2.5]
[1617693506076,0.49901958,58834.0,58833.0,5.586]
[1617693506392,0.4990064,58836.0,58833.0,5.586]
[1617693506875,0.4986818,58838.0,58835.0,1.0]
[1617693507077,0.4986818,58838.0,58836.0,2.5]
[1617693507277,0.49867453,58839.0,58837.0,0.10725655]
[1617693507480,0.49867453,58839.0,58838.0,1.5]
[1617693507679,0.49867453,58839.0,58838.0,1.77]
[1617693510382,0.4977953,58843.0,58838.0,1.77]
[1617693510782,0.4977953,58843.0,58841.0,1.0]
[1617693510982,0.4977953,58843.0,58842.0,1.5]
[1617693511182,0.4977953,58843.0,58842.0,2.77]
[1617693511585,0.4977953,58843.0,58842.0,5.0155]
[1617693511784,0.49779227,58844.0,58842.0,5.0155]
[1617693511983,0.49779227,58844.0,58842.0,6.0155]
[1617693512183,0.49779227,58844.0,58843.0,1.0]
[1617693512383,0.49779227,58844.0,58843.0,2.63175]
[1617693512583,0.49779227,58844.0,58843.0,2.90175]
[1617693512884,0.49778223,58845.0,58843.0,2.90175]
[1617693513285,0.49778223,58845.0,58844.0,0.10725655]
[1617693513584,0.49778223,58845.0,58844.0,2.60705655]
[1617693513786,0.49777236,58846.0,58844.0,2.87705655]
[1617693514186,0.49777236,58846.0,58844.0,1.87705655]
[1617693514485,0.49777236,58846.0,58845.0,1.0]
[1617693514684,0.49777236,58846.0,58845.0,2.5]
[1617693514985,0.49777236,58846.0,58845.0,2.77]
[1617693515186,0.49777236,58846.0,58845.0,1.77]
[1617693515388,0.49777236,58846.0,58845.0,5.0877]
[1617693516287,0.49777236,58846.0,58845.0,6.0877]
[1617693516888,0.49777236,58846.0,58845.0,5.0877]
[1617693517188,0.49777236,58846.0,58845.0,6.0877]
[1617693517989,0.49733708,58848.0,58845.0,6.0877]
[1617693518289,0.4973235,58851.0,58845.0,6.0877]
[1617693518489,0.4973235,58851.0,58849.0,1.0]
[1617693518689,0.4973235,58851.0,58850.0,1.5]
[1617693518889,0.4973235,58851.0,58850.0,2.77]
[1617693519291,0.49732049,58852.0,58850.0,2.87725655]
[1617693519690,0.49732049,58852.0,58850.0,1.87725655]
[1617693520695,0.49732049,58852.0,58851.0,1.0]
[1617693520894,0.49732049,58852.0,58851.0,2.5]
[1617693521094,0.49732049,58852.0,58851.0,2.77]
[1617693521495,0.1281,58853.0,58851.0,2.77]
[1617693521896,0.1281,58853.0,58852.0,1.0]
[1617693522193,0.1281,58853.0,58852.0,2.5]
[1617693522405,0.1281,58853.0,58852.0,2.77]
[1617693526312,0.49668635,58858.0,58852.0,2.77]
[1617693526515,0.49668635,58858.0,58857.0,2.7535]
[1617693526698,0.49668635,58858.0,58857.0,2.89234]
[1617693527000,0.49668635,58858.0,58857.0,4.66234]
[1617693527297,0.49668635,58858.0,58857.0,4.76959655]
[1617693527499,0.49668635,58858.0,58857.0,5.76959655]
[1617693527699,0.49668166,58859.0,58858.0,1.0]
[1617693527899,0.49668166,58859.0,58858.0,2.5]
[1617693528099,0.49662782,58860.0,58859.0,0.27]
[1617693528500,0.49662782,58860.0,58858.0,1.77]
[1617693528700,0.49662782,58860.0,58859.0,0.27]
[1617693529400,0.49662782,58860.0,58858.0,0.27]
[1617693529601,0.49662782,58860.0,58859.0,0.27]
[1617693529802,0.49662782,58860.0,58859.0,1.77]
[1617693530100,0.49662782,58860.0,58859.0,4.4554]
[1617693530300,0.49662782,58860.0,58859.0,4.7254]
[1617693530901,0.49662782,58860.0,58859.0,4.72439699]
[1617693532602,0.49662782,58860.0,58859.0,3.2254]
[1617693533103,0.49638732,58861.0,58859.0,3.2254]
[1617693534502,0.49638732,58861.0,58859.0,3.33097]
[1617693536308,0.49638732,58861.0,58859.0,3.2254]
[1617693537108,0.49638234,58860.0,58859.0,3.2254]
[1617693539513,0.49638234,58860.0,58859.0,0.27]
[1617693539912,3.58878234,58860.0,58858.0,0.27]
[1617693540214,3.58878234,58860.0,58859.0,0.27]
[1617693540412,3.0924,58860.0,58859.0,0.27]
[1617693540611,3.0924,58860.0,58858.0,0.27]
[1617693540814,3.58934504,58860.0,58859.0,0.26899697]
[1617693541214,0.58722628,58859.0,58858.0,0.27]
[1617693541414,0.74000628,58859.0,58857.0,0.10725655]
[1617693541614,0.84726283,58859.0,58857.0,0.10725655]
[1617693541813,0.10725655,58859.0,58858.0,0.27]
[1617693542114,0.13437,58859.0,58858.0,0.27]
[1617693542314,2.9039,58858.0,58857.0,0.10725655]
[1617693542818,3.9039,58858.0,58834.0,0.4544]
[1617693543015,4.04432724,58858.0,58834.0,0.4544]
[1617693543416,3.9039,58858.0,58834.0,0.4544]
[1617693543615,3.9039,58858.0,58848.0,0.10725655]
[1617693543816,4.04433383,58858.0,58848.0,0.10725655]
[1617693544318,0.55709508,58856.0,58848.0,0.10725655]
[1617693544717,1.0,58854.0,58848.0,0.10725655]
[1617693544920,0.55709508,58856.0,58848.0,0.10725655]
[1617693545119,0.55709508,58856.0,58855.0,2.9688]
[1617693545322,0.55709554,58857.0,58855.0,2.9688]